[Event "4th CNE NED-ch Women Rapid"]
[Site "Amstelveen"]
[Date "2018.11.18"]
[Round "6"]
[White "De Jong-Muhren, Bianca"]
[Black "Ratsma, Rosa"]
[Result "1-0"]
[ECO "B36"]
[WhiteElo "2243"]
[BlackElo "2269"]
[Annotator "NA"]
[PlyCount "99"]
[EventDate "2018.11.18"]
[EventType "tourn"]
[EventCountry "NED"]
[SourceTitle "playchess.com"]
[Source "ChessBase"]
[SourceQuality "1"]
[TimeControl "900+10"]

1. e4 {[%emt 0:00:00]} c5 {[%emt 0:00:00]} 2. Nf3 {[%emt 0:00:00]} Nc6 {[%emt 0:00:00]} 3. d4 {[%emt 0:00:00]} cxd4 {[%emt 0:00:01]} 4. Nxd4 {[%emt 0:00:00]} g6 {[%emt 0:00:02]} 5. c4 {[%emt 0:00:02]} d6 {[%emt 0:00:09]} 6. Nc3 {[%emt 0:00:09]} Nf6 {[%emt 0:00:02]} 7. Be2 {[%emt 0:00:22]} Nxd4 {[%emt 0:00:17]} 8. Qxd4 {[%emt 0:00:02]} Bg7 {[%emt 0:00:02]} 9. O-O {[%emt 0:01:04]} O-O {[%emt 0:00:07]} 10. Qd1 {[%emt 0:01:30]} Be6 {[%emt 0:00:27] LiveBook: 6 Games} 11. Be3 {[%emt 0:00:17] B36: Sicilian: Maroczy Bind: Gurgenidze System} Rc8 {[%emt 0:00:34]} (11... Qa5 12. Bd4 Rfc8 13. b3 a6 14. Nd5 Bxd5 15. exd5 Nd7 16. Re1 Rc7 17. Bxg7 Kxg7 18. Qd4+ Kg8 19. Bf1 Re8 20. Re3 {½-½ (53) Pantsulaia,L (2611)-Krivoshey,S (2531) Dubai 2006}) 12. b3 {[%emt 0:01:32]} b5 $146 {[%emt 0:01:19]} ({Predecessor:} 12... a6 $11 13. Rc1 Qa5 14. Bd2 Qc7 15. Kh1 Qb8 16. f3 Nd7 17. f4 f5 18. exf5 Bxf5 {½-½ (41) Stoyanov,T (2242)-Laverton,C (2088) Prague 2018}) 13. Nxb5 {[%emt 0:01:45]} Nxe4 {[%emt 0:00:10]} 14. Nxa7 {[%emt 0:00:23]} Nc3 {[%emt 0:00:35]} 15. Qd2 {[%emt 0:00:18]} Nxe2+ {[%emt 0:01:03]} 16. Qxe2 {[%emt 0:00:01]} Bxa1 {[%emt 0:00:17]} 17. Nxc8 {[%emt 0:00:18]} ({Not} 17. Rxa1 Ra8 $11) 17... Bg7 {[%emt 0:00:34]} 18. Na7 {[%emt 0:00:14]} Qa8 {[%emt 0:00:47]} (18... Qd7 $142) 19. Nb5 {[%emt 0:00:32]} Bd7 {[%emt 0:00:58]} 20. a4 {[%emt 0:00:24]} Qe4 {[%emt 0:00:43]} 21. Re1 {[%emt 0:00:45]} Bc6 {[%emt 0:00:29]} 22. f3 {[%emt 0:00:03]} Qf5 {[%emt 0:02:18]} 23. Nd4 {[%emt 0:00:19]} Qd7 {[%emt 0:00:07]} 24. Nxc6 {[%emt 0:00:20]} Qxc6 {[%emt 0:00:02]} 25. Qd3 {[%emt 0:00:58]} Rb8 {[%emt 0:00:24]} 26. a5 {[%emt 0:00:12]} e6 {[%emt 0:01:14]} 27. Bb6 {[%emt 0:00:38]} d5 {[%emt 0:01:21]} 28. c5 {[%emt 0:01:34]} Bf8 {[%emt 0:00:19]} 29. b4 {[%emt 0:00:09]} Qa4 {[%emt 0:00:06]} 30. Rb1 {[%emt 0:00:31]} Ra8 {[%emt 0:00:48]} 31. h3 {[%emt 0:01:39]} Bg7 {[%emt 0:01:14]} 32. Kh1 {[%emt 0:00:13]} Be5 {[%emt 0:00:40]} 33. Qd1 {[%emt 0:01:08]} Qb5 {[%emt 0:01:09]} 34. Qf1 {[%emt 0:00:03]} Qa4 {[%emt 0:00:15]} 35. f4 {[%emt 0:01:36]} Bc3 {[%emt 0:00:13]} 36. Qd3 {[%emt 0:00:07]} Bf6 {[%emt 0:01:09]} 37. Qd1 {[%emt 0:00:18]} Qb5 {[%emt 0:00:10]} 38. Qf1 {[%emt 0:00:02]} Qa4 {[%emt 0:00:08]} 39. b5 {[%emt 0:00:16]} Rc8 {[%emt 0:00:57]} 40. c6 {[%emt 0:00:10]} Bc3 $18 {[%emt 0:00:08]} 41. a6 {[%emt 0:00:12]} d4 {[%emt 0:00:18]} 42. Qd3 {[%emt 0:00:24]} h5 {[%emt 0:00:10]} 43. c7 {[%emt 0:00:25]} Qa2 {[%emt 0:00:13]} 44. Qe4 {[%emt 0:00:06]} Kh7 {[%emt 0:00:10]} 45. Rd1 {[%emt 0:00:18]} Ba5 {[%emt 0:00:03]} 46. Qb7 {[%emt 0:00:32]} Qc2 {[%emt 0:00:05]} 47. Rf1 {[%emt 0:00:35]} Qe2 {[%emt 0:00:17]} 48. Ra1 {[%emt 0:00:15]} Bxb6 {[%emt 0:00:13]} 49. Qxc8 {[%emt 0:00:07]} d3 {[%emt 0:00:07]} 50. Qd7 {[%emt 0:00:06]} 1-0

[Event "4th CNE NED-ch Women Rapid"]
[Site "Amstelveen"]
[Date "2018.11.18"]
[Round "6"]
[White "Kazarian, Anna-Maja"]
[Black "Van Foreest, Machteld"]
[Result "1-0"]
[ECO "E19"]
[WhiteElo "2194"]
[BlackElo "2003"]
[Annotator "ChessBase"]
[PlyCount "47"]
[EventDate "2018.11.18"]
[EventType "tourn"]
[EventCountry "NED"]
[SourceTitle "playchess.com"]
[Source "ChessBase"]
[SourceQuality "1"]
[TimeControl "900+10"]

1. Nf3 {[%emt 0:00:00]} Nf6 {[%emt 0:00:00]} 2. g3 {[%emt 0:00:00]} b6 {[%emt 0:00:00]} 3. Bg2 {[%emt 0:00:00]} Bb7 {[%emt 0:00:00]} 4. O-O {[%emt 0:00:09]} e6 {[%emt 0:00:03]} 5. d4 {[%emt 0:00:01]} Be7 6. c4 {[%emt 0:00:07]} O-O {[%emt 0:00:26]} 7. Nc3 {[%emt 0:00:04]} Ne4 {[%emt 0:00:36]} 8. Qc2 {[%emt 0:01:41]} Nxc3 {[%emt 0:00:37]} 9. Qxc3 {[%emt 0:00:02]} d5 {[%emt 0:00:03]} 10. Bf4 {[%emt 0:00:43]} c5 {[%emt 0:00:24]} 11. dxc5 {[%emt 0:00:53]} Bxc5 {[%emt 0:01:25]} 12. Rad1 {[%emt 0:00:04]} Qe7 {[%emt 0:00:54]} 13. a3 {[%emt 0:03:13]} a5 {[%emt 0:02:28]} 14. Qc2 {[%emt 0:00:03]} dxc4 {[%emt 0:00:56]} 15. Ng5 {[%emt 0:00:45]} g6 {[%emt 0:00:15]} 16. Bxb7 {[%emt 0:00:44]} Qxb7 {[%emt 0:00:02]} 17. Ne4 {[%emt 0:00:02]} Be7 {[%emt 0:00:56]} 18. Bh6 {[%emt 0:00:19]} Rc8 {[%emt 0:02:57]} 19. Qc3 {[%emt 0:00:22]} f6 {[%emt 0:00:01]} 20. Nxf6+ {[%emt 0:00:06]} Bxf6 {[%emt 0:00:01]} 21. Qxf6 {[%emt 0:00:02]} Qc7 {[%emt 0:00:55]} 22. Qxe6+ {[%emt 0:00:26]} Kh8 {[%emt 0:00:01]} 23. Bf4 {[%emt 0:00:08]} Qc5 {[%emt 0:00:55]} 24. Be5+ {[%emt 0:00:03]} 1-0

[Event "4th CNE NED-ch Women Rapid"]
[Site "Amstelveen"]
[Date "2018.11.18"]
[Round "6"]
[White "Keetman, Maaike"]
[Black "Haast, Anne"]
[Result "1/2-1/2"]
[ECO "B46"]
[WhiteElo "2176"]
[BlackElo "2309"]
[Annotator "NA"]
[PlyCount "84"]
[EventDate "2018.11.18"]
[EventType "tourn"]
[EventCountry "NED"]
[SourceTitle "playchess.com"]
[Source "ChessBase"]
[SourceQuality "1"]
[TimeControl "900+10"]

{[%evp 17,58,10,11,-12,-9,-17,1,0,2,0,32767,0,32767,0,0,-10,-7,-25,-13,-45,28,25,6,0,0,0,70,18,16,-18,22,0,32767,62,62,34,72,51,53,31,74,8,14]} 1. e4 {[%emt 0:00:00]} c5 {[%emt 0:00:00]} 2. Nf3 {[%emt 0:00:00]} e6 {[%emt 0:00:00]} 3. d4 {[%emt 0:00:00]} cxd4 {[%emt 0:00:00]} 4. Nxd4 {[%emt 0:00:00]} Nc6 {[%emt 0:00:00]} 5. Nc3 {[%emt 0:00:00]} a6 {[%emt 0:00:03]} 6. Nxc6 {[%emt 0:00:26]} bxc6 {[%emt 0:00:02]} 7. Bd3 {[%emt 0:00:04]} d5 {[%emt 0:00:26]} 8. O-O {[%emt 0:00:06]} Nf6 {[%emt 0:00:03]} 9. Bg5 {[%emt 0:01:24]} Be7 {[%emt 0:00:05] B46: Sicilian: Taimanov: 5 Nc3 a6} 10. e5 {[%emt 0:00:03]} Nd7 {[%emt 0:00:11]} 11. Bxe7 {[%emt 0:00:03]} Qxe7 {[%emt 0:00:01] LiveBook: 13 Games} 12. Qg4 {[%emt 0:01:24]} (12. Re1 c5 13. b3 Bb7 14. Qh5 h6 15. f4 O-O 16. Qe2 f6 17. exf6 Rxf6 {½-½ (49) Morozevich,A (2750)-Svidler,P (2754) Moscow 2009}) 12... Kf8 $146 {[%emt 0:00:09]} ({Predecessor:} 12... g6 13. Rfe1 Rb8 14. Rab1 O-O 15. g3 f6 16. exf6 Nxf6 17. Qe2 {0-1 (32) Phillips,R-Moffat,A (2105) Victoria 2012}) 13. f4 {[%emt 0:00:24]} Rb8 {[%emt 0:00:17]} 14. Rab1 {[%emt 0:00:18]} h5 {[%emt 0:00:27]} 15. Qe2 {[%emt 0:00:34]} Nc5 {[%emt 0:00:44]} 16. Kh1 {[%emt 0:00:41]} g6 {[%emt 0:00:12]} 17. Qf2 {[%emt 0:01:54]} a5 {[%emt 0:00:24]} 18. Ne2 {[%emt 0:01:06]} Bb7 {[%emt 0:02:07]} (18... Nxd3 $15 19. cxd3 c5) 19. Nd4 {[%emt 0:00:24]} Nxd3 {[%emt 0:00:44]} 20. cxd3 {[%emt 0:00:01]} c5 {[%emt 0:00:03]} 21. Nb3 {[%emt 0:00:22]} d4 {[%emt 0:00:02]} ({Black should play} 21... c4 $11 22. Nxa5 cxd3) 22. Nxa5 {[%emt 0:00:31]} ({White should play} 22. Rbc1 $16) 22... Bd5 {[%emt 0:00:04]} 23. b4 {[%emt 0:00:56]} h4 {[%emt 0:02:45]} 24. h3 {[%emt 0:00:26]} Qa7 {[%emt 0:01:12] [#]} 25. a3 $1 {[%emt 0:01:24]} Kg7 {[%emt 0:01:06]} 26. Rfc1 {[%emt 0:00:05]} Rb5 {[%emt 0:01:06]} 27. Nc4 {[%emt 0:00:42]} Bxc4 $1 {[%emt 0:00:23]} 28. dxc4 {[%emt 0:00:02]} Rbb8 {[%emt 0:00:08]} 29. bxc5 {[%emt 0:00:42]} (29. Ra1 $16) 29... Qxc5 $11 {[%emt 0:01:31]} 30. Rxb8 {[%emt 0:00:12]} Rxb8 {[%emt 0:00:01]} 31. Rd1 {[%emt 0:00:01]} Qxa3 {[%emt 0:00:45]} 32. Qxd4 {[%emt 0:00:26]} Rb3 {[%emt 0:01:20]} 33. f5 {[%emt 0:01:31]} gxf5 {[%emt 0:03:06]} 34. Qxh4 {[%emt 0:00:06]} Rd3 {[%emt 0:00:06]} 35. Rb1 {[%emt 0:02:27]} Rb3 {[%emt 0:00:06]} 36. Qg5+ {[%emt 0:01:05]} Kh7 {[%emt 0:00:10]} 37. Rf1 {[%emt 0:00:30]} Rg3 {[%emt 0:00:18]} 38. Qh4+ {[%emt 0:00:32]} Kg8 {[%emt 0:00:19]} 39. Qd8+ {[%emt 0:00:05]} Kh7 {[%emt 0:00:07]} 40. Rd1 {[%emt 0:00:17]} Rxh3+ {[%emt 0:00:18]} 41. gxh3 {[%emt 0:00:04]} Qxh3+ {[%emt 0:00:07]} 42. Kg1 {[%emt 0:00:01]} Qg3+ {[%emt 0:00:13]} 1/2-1/2

[Event "4th CNE NED-ch Women Rapid"]
[Site "Amstelveen"]
[Date "2018.11.18"]
[Round "7"]
[White "Paulet, Iozefina"]
[Black "De Jong-Muhren, Bianca"]
[Result "0-1"]
[ECO "B40"]
[WhiteElo "2281"]
[BlackElo "2243"]
[Annotator "NA"]
[PlyCount "176"]
[EventDate "2018.11.18"]
[EventType "tourn"]
[EventCountry "NED"]
[SourceTitle "playchess.com"]
[Source "ChessBase"]
[SourceQuality "1"]
[TimeControl "900+10"]

1. e4 {[%emt 0:00:00]} c5 {[%emt 0:00:00]} 2. Nf3 {[%emt 0:00:00]} e6 {[%emt 0:00:00]} 3. b3 {[%emt 0:00:00]} Nc6 {[%emt 0:00:13]} 4. Bb2 {[%emt 0:00:00]} a6 {[%emt 0:00:08]} 5. g3 {[%emt 0:00:33]} d6 {[%emt 0:00:32] LiveBook: 50 Games} 6. Bg2 {[%emt 0:00:02]} Nf6 {[%emt 0:00:18]} 7. d3 {[%emt 0:01:07]} Be7 {[%emt 0:00:10]} 8. O-O {[%emt 0:00:03]} O-O {[%emt 0:00:08]} 9. Re1 {[%emt 0:00:02] B30: Sicilian: 2...Nc6 3 Bb5, lines without ...g6} e5 {[%emt 0:00:56]} 10. c3 $146 {[%emt 0:00:14]} ({Predecessor:} 10. Nbd2 h6 11. c3 b5 12. d4 Bb7 13. d5 Nb8 14. c4 Nh7 15. h4 Nd7 16. Bh3 Nb6 {0-1 (43) Ryan,J (2285)-Balague Camps,M (2082) Barbera del Valles 2014}) 10... Re8 {[%emt 0:02:39]} 11. d4 {[%emt 0:00:16]} Bg4 {[%emt 0:01:14]} 12. d5 {[%emt 0:00:05]} Nb8 {[%emt 0:00:10]} 13. Nbd2 {[%emt 0:00:09]} Qc8 {[%emt 0:00:24]} 14. a4 {[%emt 0:00:10]} b6 {[%emt 0:00:56]} 15. Nc4 {[%emt 0:00:40]} Nbd7 {[%emt 0:00:01]} 16. Ne3 {[%emt 0:00:03]} Nf8 {[%emt 0:00:18]} 17. Nxg4 {[%emt 0:00:04]} Qxg4 {[%emt 0:00:46]} 18. h3 {[%emt 0:00:06]} Qd7 {[%emt 0:00:10]} 19. Nd2 {[%emt 0:00:02]} Ng6 {[%emt 0:00:51]} 20. Nc4 {[%emt 0:00:24]} Bd8 {[%emt 0:00:02]} 21. Ne3 {[%emt 0:00:04]} Nf8 {[%emt 0:01:00]} 22. Kh2 {[%emt 0:01:34]} g6 {[%emt 0:00:31]} 23. Bc1 {[%emt 0:00:28]} h5 {[%emt 0:00:10]} 24. h4 {[%emt 0:00:09]} N8h7 {[%emt 0:00:12]} 25. Bh3 {[%emt 0:00:02]} Qb7 {[%emt 0:00:42]} 26. Ng2 {[%emt 0:00:05]} b5 {[%emt 0:00:11]} 27. Re2 {[%emt 0:05:03]} c4 {[%emt 0:01:17]} (27... Ng4+ $16 28. Kg1 Ba5) 28. bxc4 {[%emt 0:00:41]} bxc4 {[%emt 0:00:01]} 29. Ba3 {[%emt 0:00:04]} Bc7 {[%emt 0:00:38]} 30. Rb1 {[%emt 0:00:09]} Qa7 {[%emt 0:00:02]} 31. f3 {[%emt 0:01:07]} Rab8 {[%emt 0:00:37]} 32. Reb2 {[%emt 0:00:04]} (32. Ne3 $18) 32... Rxb2 {[%emt 0:00:47]} 33. Rxb2 {[%emt 0:00:01]} Rb8 {[%emt 0:00:30]} 34. Qb1 {[%emt 0:00:01]} Rxb2 {[%emt 0:00:24]} 35. Qxb2 {[%emt 0:00:04]} Nf8 {[%emt 0:00:01]} 36. Qe2 {[%emt 0:00:57]} Ne8 {[%emt 0:00:40]} 37. Bc1 {[%emt 0:00:34]} Ba5 {[%emt 0:00:29]} 38. Bd2 {[%emt 0:01:03]} ({Much less strong is} 38. Qxc4 $6 Qf2 $14) 38... Nd7 {[%emt 0:00:34]} 39. Bxd7 {[%emt 0:00:09]} Qxd7 {[%emt 0:00:01]} 40. Qxc4 {[%emt 0:00:02]} Qb7 {[%emt 0:00:16]} 41. Be3 {[%emt 0:00:30]} Nc7 {[%emt 0:00:24]} 42. f4 {[%emt 0:00:15]} f6 {[%emt 0:00:26]} 43. fxe5 {[%emt 0:00:02]} fxe5 {[%emt 0:00:01]} 44. g4 {[%emt 0:00:36]} hxg4 {[%emt 0:01:07]} 45. Qe2 {[%emt 0:00:14]} Qc8 {[%emt 0:00:01]} 46. c4 {[%emt 0:00:03]} Ne8 {[%emt 0:00:16]} 47. Bg5 {[%emt 0:00:28]} Bb6 {[%emt 0:00:20]} 48. Ne3 {[%emt 0:00:02]} Bxe3 {[%emt 0:00:05]} 49. Bxe3 {[%emt 0:01:04]} Nf6 {[%emt 0:00:02]} 50. Bg5 {[%emt 0:00:09]} Nh5 {[%emt 0:00:07]} 51. a5 {[%emt 0:01:20]} g3+ {[%emt 0:00:13]} 52. Kg2 {[%emt 0:00:07]} Qc5 {[%emt 0:00:17]} 53. Be3 {[%emt 0:00:49]} Qxa5 {[%emt 0:00:07]} 54. c5 {[%emt 0:00:02]} (54. Qg4 $11 {remains equal.}) 54... Qb4 {[%emt 0:00:50]} (54... Qa4 $1 $15 55. Qd3 dxc5) 55. Qg4 {[%emt 0:00:11]} Nf4+ {[%emt 0:00:31]} 56. Kf3 {[%emt 0:00:41]} Qb1 {[%emt 0:00:17]} 57. Qxg3 $2 {[%emt 0:00:23]} (57. Qc8+ $11 {and White is okay.} Kh7 58. Qc7+ Kh6 59. Bxf4+ exf4 60. Qxd6 Qf1+ 61. Kg4) 57... Qd1+ {[%emt 0:00:06]} 58. Kf2 {[%emt 0:00:06]} Qe2+ {[%emt 0:00:15]} 59. Kg1 {[%emt 0:00:05]} Qd1+ {[%emt 0:00:01]} 60. Kh2 {[%emt 0:00:03]} Qc2+ {[%emt 0:00:05]} 61. Bf2 $2 {[%emt 0:00:09]} (61. Qf2 $11 {and White has nothing to worry.} Qxe4 62. Bxf4 exf4 63. c6) 61... dxc5 {[%emt 0:00:12]} ({Resist} 61... Qxe4 62. Qg4 $19) 62. h5 {[%emt 0:00:44]} Qxe4 {[%emt 0:00:04]} 63. hxg6 {[%emt 0:00:04]} Qxg6 {[%emt 0:00:25]} 64. Qxg6+ {[%emt 0:00:04]} Nxg6 {[%emt 0:00:01]} 65. Bxc5 {[%emt 0:00:01]} Kf7 {[%emt 0:00:07]} 66. Kg3 {[%emt 0:00:06]} Nf4 {[%emt 0:00:12]} 67. d6 $2 {[%emt 0:00:32]} (67. Kg4 $11 {and White is okay.}) 67... Ke6 {[%emt 0:00:02]} 68. Kf3 {[%emt 0:00:03] [#]} Nd5 $2 {[%emt 0:00:16]} 69. Ke4 $2 {[%emt 0:00:07]} (69. d7 $1 $11 {and White has nothing to worry.} Kxd7 70. Ke4) 69... Nf6+ {[%emt 0:00:15] Ba3 [%clk 0:01:13]} 70. Kd3 {[%emt 0:00:06] [#]} Ne8 $1 {[%emt 0:00:00]} 71. Kc3 $19 {[%emt 0:00:38]} Nxd6 {[%emt 0:00:00]} 72. Kb4 {[%emt 0:00:08]} Kd5 {[%emt 0:00:00]} 73. Bg1 {[%emt 0:00:06]} Nb7 {[%emt 0:00:00]} 74. Kc3 {[%emt 0:00:04]} a5 {[%emt 0:00:11]} 75. Bf2 {[%emt 0:00:10]} Ke4 {[%emt 0:00:15]} 76. Bg3 {[%emt 0:00:37]} Nd6 {[%emt 0:00:32]} 77. Bh2 {[%emt 0:00:04]} Kd5 {[%emt 0:00:11]} 78. Bg1 {[%emt 0:00:01]} e4 {[%emt 0:00:09]} 79. Kb3 {[%emt 0:00:14]} Nb7 {[%emt 0:00:20]} 80. Bb6 {[%emt 0:00:24]} Nc5+ {[%emt 0:00:08]} 81. Ka3 {[%emt 0:00:10]} Nb7 {[%emt 0:00:21]} 82. Kb3 {[%emt 0:00:01]} Ke5 {[%emt 0:00:06]} 83. Kc4 {[%emt 0:00:02]} Kf4 {[%emt 0:00:04]} 84. Bd4 {[%emt 0:00:22]} Kf3 {[%emt 0:00:03]} 85. Bc3 {[%emt 0:00:22]} e3 {[%emt 0:00:03]} 86. Kb5 {[%emt 0:00:03]} e2 {[%emt 0:00:07]} 87. Kc6 {[%emt 0:00:03]} a4 {[%emt 0:00:14]} 88. Kxb7 {[%emt 0:00:03]} a3 {[%emt 0:00:01]} 0-1

[Event "4th CNE NED-ch Women Rapid"]
[Site "Amstelveen"]
[Date "2018.11.18"]
[Round "8"]
[White "De Jong-Muhren, Bianca"]
[Black "Haast, Anne"]
[Result "0-1"]
[ECO "B46"]
[WhiteElo "2243"]
[BlackElo "2309"]
[Annotator "ChessBase"]
[PlyCount "90"]
[EventDate "2018.11.18"]
[EventType "tourn"]
[EventCountry "NED"]
[SourceTitle "playchess.com"]
[Source "ChessBase"]
[SourceQuality "1"]
[TimeControl "900+10"]

1. e4 {[%emt 0:12:08]} c5 {[%emt 0:12:07]} 2. Nf3 {[%emt 0:00:09]} e6 {[%emt 0:00:09]} 3. d4 {[%emt 0:00:09]} cxd4 {[%emt 0:00:09]} 4. Nxd4 {[%emt 0:00:09]} Nc6 {[%emt 0:00:10]} 5. Nc3 {[%emt 0:00:09]} a6 {[%emt 0:00:09]} 6. Be2 {[%emt 0:00:11]} Nf6 {[%emt 0:00:20]} 7. O-O {[%emt 0:00:10]} Qc7 {[%emt 0:00:15]} 8. Be3 {[%emt 0:00:09]} Be7 {[%emt 0:00:21]} 9. f4 {[%emt 0:00:12]} d6 {[%emt 0:00:09]} 10. a4 {[%emt 0:00:10]} O-O {[%emt 0:00:12]} 11. Kh1 {[%emt 0:00:10]} Re8 {[%emt 0:00:17]} 12. Bf3 {[%emt 0:00:18]} Nxd4 {[%emt 0:00:16]} 13. Qxd4 {[%emt 0:00:25]} e5 {[%emt 0:00:10]} 14. Qd2 {[%emt 0:00:11]} Be6 {[%emt 0:00:11]} 15. f5 {[%emt 0:00:31]} Bc4 {[%emt 0:00:09]} 16. Rfd1 {[%emt 0:00:11]} a5 {[%emt 0:00:21]} 17. g4 {[%emt 0:00:24]} d5 {[%emt 0:00:25]} 18. exd5 {[%emt 0:00:36]} e4 {[%emt 0:00:10]} 19. Nxe4 {[%emt 0:00:32]} Nxd5 {[%emt 0:00:08]} 20. Bg1 {[%emt 0:00:21]} Rad8 {[%emt 0:00:14]} 21. b3 {[%emt 0:00:16]} Nf6 {[%emt 0:00:20]} 22. Qg2 {[%emt 0:00:15]} Ba6 {[%emt 0:00:22]} 23. c4 {[%emt 0:00:16]} b6 {[%emt 0:00:13]} 24. Nc3 {[%emt 0:00:15]} Bc5 {[%emt 0:00:29]} 25. Nd5 {[%emt 0:00:16]} Nxd5 {[%emt 0:00:09]} 26. Bxd5 {[%emt 0:00:10]} Bxg1 {[%emt 0:00:14]} 27. Rxg1 {[%emt 0:00:11]} Re3 {[%emt 0:00:09]} 28. Rab1 {[%emt 0:00:14]} Rde8 {[%emt 0:00:10]} 29. Rgf1 {[%emt 0:00:11]} Qe5 {[%emt 0:00:12]} 30. Rbd1 {[%emt 0:00:19]} Rxb3 {[%emt 0:00:21]} 31. g5 {[%emt 0:00:16]} Rb2 {[%emt 0:00:14]} 32. Qh3 {[%emt 0:00:17]} Bc8 {[%emt 0:00:15]} 33. g6 {[%emt 0:00:12]} hxg6 {[%emt 0:00:10]} 34. Bxf7+ {[%emt 0:00:09]} Kxf7 {[%emt 0:00:28]} 35. fxg6+ {[%emt 0:00:09]} Kxg6 {[%emt 0:00:13]} 36. Rg1+ {[%emt 0:00:13]} Kf7 {[%emt 0:00:12]} 37. Rdf1+ {[%emt 0:00:10]} Kg8 {[%emt 0:00:13]} 38. Qh4 {[%emt 0:00:13]} Qe4+ {[%emt 0:00:11]} 39. Qxe4 {[%emt 0:00:09]} Rxe4 {[%emt 0:00:08]} 40. Rd1 {[%emt 0:00:09]} Bg4 {[%emt 0:00:12]} 41. Rd3 {[%emt 0:00:09]} Rf4 {[%emt 0:00:12]} 42. Re1 {[%emt 0:00:09]} Bf3+ {[%emt 0:00:10]} 43. Kg1 {[%emt 0:00:09]} Rg2+ {[%emt 0:00:09]} 44. Kh1 {[%emt 0:00:14]} Rg3+ {[%emt 0:00:09]} 45. Rxf3 {[%emt 0:00:11]} Rgxf3 {[%emt 0:00:08]} 0-1

[Event "4th CNE NED-ch Women Rapid"]
[Site "Amstelveen"]
[Date "2018.11.18"]
[Round "9"]
[White "Haast, Anne"]
[Black "De Jong-Muhren, Bianca"]
[Result "1-0"]
[ECO "B48"]
[WhiteElo "2309"]
[BlackElo "2243"]
[Annotator "ChessBase"]
[PlyCount "37"]
[EventDate "2018.11.18"]
[EventType "tourn"]
[EventCountry "NED"]
[SourceTitle "playchess.com"]
[Source "ChessBase"]
[SourceQuality "1"]
[TimeControl "900+10"]

1. e4 {[%emt 0:12:06]} c5 {[%emt 0:12:06]} 2. Nf3 {[%emt 0:00:09]} e6 {[%emt 0:00:09]} 3. d4 {[%emt 0:00:09]} cxd4 {[%emt 0:00:08]} 4. Nxd4 {[%emt 0:00:08]} Nc6 {[%emt 0:00:09]} 5. Nc3 {[%emt 0:00:10]} Qc7 {[%emt 0:00:09]} 6. Be3 {[%emt 0:00:12]} a6 {[%emt 0:00:08]} 7. Qd2 {[%emt 0:00:10]} Nf6 {[%emt 0:00:09]} 8. f3 {[%emt 0:00:08]} Be7 {[%emt 0:00:11]} 9. O-O-O {[%emt 0:00:12]} O-O {[%emt 0:00:12]} 10. g4 {[%emt 0:00:14]} b5 {[%emt 0:00:13]} 11. g5 {[%emt 0:00:10]} Nh5 {[%emt 0:00:09]} 12. Kb1 {[%emt 0:00:17]} Bb7 {[%emt 0:00:21]} 13. Nce2 {[%emt 0:00:09]} Ne5 {[%emt 0:00:11]} 14. Ng3 {[%emt 0:00:13]} Nxg3 {[%emt 0:00:54]} 15. hxg3 {[%emt 0:00:09]} Nxf3 {[%emt 0:00:10]} 16. Nxf3 {[%emt 0:00:13]} Bxe4 {[%emt 0:00:08]} 17. Bd3 {[%emt 0:00:33]} Bxf3 {[%emt 0:00:58]} 18. Bxh7+ {[%emt 0:00:19]} Kh8 {[%emt 0:00:08]} 19. Qh2 {[%emt 0:00:34]} 1-0